fUST/lending_fUST_20250408
["ID","MTS","AMOUNT","RATE_DAILY","PERIOD"]
[357470289,1744078239066,-500.0,0.00021917,2]
[357470290,1744078239077,-500.0,0.00021917,2]
[357470291,1744078239086,-655.89,0.00021917,2]
[357470292,1744078239100,-500.0,0.00021917,2]
[357470293,1744078239110,-500.0,0.00021917,2]
[357470294,1744078239120,-617.55,0.00021917,2]
[357470295,1744078239130,-375.48316274,0.00021917,2]
[357470296,1744078239141,-500.0,0.00021917,2]
[357470297,1744078239150,-500.0,0.00021917,2]
[357470298,1744078239161,-500.0,0.00021917,2]
[357470299,1744078239170,-500.0,0.00021917,2]
[357470300,1744078239180,-500.0,0.00021917,2]
[357470301,1744078239190,-500.0,0.00021917,2]
[357470302,1744078239200,-500.0,0.00021917,2]
[357470303,1744078239211,-500.0,0.00021917,2]
[357470304,1744078239221,-500.0,0.00021917,2]
[357470305,1744078239230,-500.0,0.00021917,2]
[357470306,1744078239240,-500.0,0.00021917,2]
[357470307,1744078239251,-500.0,0.00021917,2]
[357470308,1744078239261,-500.0,0.00021917,2]
[357470309,1744078239271,-500.0,0.00021917,2]
[357470310,1744078239283,-741.86,0.00021917,2]
[357470311,1744078239294,-500.0,0.00021917,2]
[357470312,1744078239303,-500.0,0.00021917,2]
[357470313,1744078239313,-500.0,0.00021917,2]
[357470314,1744078239323,-525.44859075,0.00021917,2]
[357470315,1744078239333,-500.0,0.00021917,2]
[357470316,1744078239345,-647.06,0.00021917,2]
[357470317,1744078239355,-500.0,0.00021917,2]
[357470318,1744078239366,-500.0,0.00021917,2]
[357470319,1744078239377,-240.77161436,0.00021917,2]
[357470320,1744078239388,-500.11,0.00021917,2]
[357470321,1744078239397,-526.60864357,0.00021917,2]
[357470322,1744078239407,-500.0,0.00021917,2]
[357470323,1744078239417,-500.0,0.00021917,2]
[357470324,1744078239427,-522.43740533,0.00021917,2]
[357470325,1744078239437,-505.0308066,0.00021917,2]
[357470326,1744078239448,-527.31,0.00021917,2]
[357470327,1744078239458,-200.0,0.00021917,2]
[357470328,1744078239467,-500.0,0.00021917,2]
[357470329,1744078239478,-500.0,0.00021917,2]
[357470330,1744078239490,-500.0,0.00021917,2]
[357470331,1744078239500,-500.0,0.00021917,2]
[357470332,1744078239510,-268.11195087,0.00021917,2]
[357470333,1744078239520,-500.0,0.00021917,2]
[357470334,1744078239530,-449.61999963,0.00021917,2]
[357470335,1744078239540,-500.0,0.00021917,2]
[357470336,1744078239551,-522.00891515,0.00021917,2]
[357470337,1744078239560,-500.0,0.00021917,2]
[357470338,1744078239571,-500.0,0.00021917,2]
[357470339,1744078239582,-777.63,0.00021917,2]
[357470340,1744078239593,-1500.08,0.00021917,2]
[357470341,1744078239604,-500.0,0.00021917,2]
[357470342,1744078239614,-500.0,0.00021917,2]
[357470343,1744078239624,-500.0,0.00021917,2]
[357470344,1744078239634,-500.0,0.00021917,2]
[357470345,1744078239644,-500.0,0.00021917,2]
[357470347,1744078239654,-500.0,0.00021917,2]
[357470348,1744078239664,-500.0,0.00021917,2]
[357470349,1744078239674,-531.05778226,0.00021917,2]
[357470350,1744078239684,-500.0,0.00021917,2]
[357470351,1744078239693,-500.0,0.00021917,2]
[357470352,1744078239704,-1208.47,0.00021917,2]
[357470353,1744078239714,-500.0,0.00021917,2]
[357470354,1744078239724,-533.51805361,0.00021917,2]
[357470355,1744078239733,-500.0,0.00021917,2]
[357470356,1744078239743,-515.8723377,0.00021917,2]
[357470357,1744078239753,-554.86,0.00021917,2]
[357470358,1744078239763,-503.96034136,0.00021917,2]
[357470359,1744078239773,-218.19178843,0.00021917,2]
[357470360,1744078239782,-514.57302571,0.00021917,2]
[357470361,1744078239792,-500.0,0.00021917,2]
[357470362,1744078239802,-831.74,0.00021917,2]
[357470363,1744078239811,-201.77508506,0.00021917,2]
[357470364,1744078239821,-500.0,0.00021917,2]
[357470365,1744078239831,-500.0,0.00021917,2]
[357470366,1744078239841,-1054.4,0.00021917,2]
[357470367,1744078239853,-500.0,0.00021917,2]
[357470369,1744078239863,-500.0,0.00021917,2]
[357470371,1744078239872,-512.82875101,0.00021917,2]
[357470373,1744078239882,-204.18719864,0.00021917,2]
[357470375,1744078239892,-505.92396478,0.00021917,2]
[357470376,1744078239903,-500.0,0.00021917,2]
[357470377,1744078239912,-951.68,0.00021917,2]
[357470378,1744078239923,-500.0,0.00021917,2]
[357470380,1744078239932,-513.78744727,0.00021917,2]
[357470382,1744078239942,-500.0,0.00021917,2]
[357470383,1744078239952,-520.53114595,0.00021917,2]
[357470384,1744078239961,-500.0,0.00021917,2]
[357470385,1744078239970,-500.0,0.00021917,2]
[357470387,1744078239980,-500.0,0.00021917,2]
[357470389,1744078239989,-506.71826189,0.00021917,2]
[357470390,1744078239998,-1393.1,0.00021917,2]
[357470391,1744078240008,-516.33189711,0.00021917,2]
[357470393,1744078240017,-512.70510642,0.00021917,2]
[357470394,1744078240026,-500.0,0.00021917,2]
[357470395,1744078240036,-500.0,0.00021917,2]
[357470396,1744078240045,-532.80811461,0.00021917,2]
[357470397,1744078240055,-500.0,0.00021917,2]
[357470398,1744078240064,-500.0,0.00021917,2]
[357470400,1744078240074,-500.0,0.00021917,2]
[357470401,1744078240083,-526.21,0.00021917,2]
[357470402,1744078240095,-504.17729718,0.00021917,2]
[357470403,1744078240104,-500.0,0.00021917,2]
[357470404,1744078240114,-500.0,0.00021917,2]
[357470405,1744078240123,-508.22395177,0.00021917,2]
[357470406,1744078240132,-572.22,0.00021917,2]
[357470407,1744078240141,-500.0,0.00021917,2]
[357470408,1744078240150,-500.0,0.00021917,2]
[357470409,1744078240159,-1780.71,0.00021917,2]
[357470410,1744078240169,-500.0,0.00021917,2]
[357470411,1744078240178,-500.0,0.00021917,2]
[357470412,1744078240187,-500.0,0.00021917,2]
[357470413,1744078240197,-500.0,0.00021917,2]
[357470414,1744078240207,-399.39679445,0.00021917,2]
[357470416,1744078240217,-500.0,0.00021917,2]
[357470417,1744078240226,-836.02,0.00021917,2]
[357470420,1744078240237,-1353.37,0.00021917,2]
[357470421,1744078240247,-500.0,0.00021917,2]
[357470423,1744078240256,-500.0,0.00021917,2]
[357470424,1744078240266,-500.0,0.00021917,2]
[357470425,1744078240275,-500.0,0.00021917,2]
[357470426,1744078240288,-500.0,0.00021917,2]
[357470427,1744078240297,-500.0,0.00021917,2]
[357470428,1744078240307,-500.0,0.00021917,2]
[357470429,1744078240318,-500.0,0.00021917,2]
[357470430,1744078240327,-500.0,0.00021917,2]
[357470431,1744078240337,-500.0,0.00021917,2]
[357470432,1744078240349,-500.0,0.00021917,2]
[357470433,1744078240359,-500.0,0.00021917,2]
[357470434,1744078240369,-500.0,0.00021917,2]
[357470435,1744078240379,-1092.41,0.00021917,2]
[357470436,1744078240389,-500.0,0.00021917,2]
[357470437,1744078240399,-500.0,0.00021917,2]
[357470439,1744078240409,-500.0,0.00021917,2]
[357470440,1744078240419,-500.0,0.00021917,2]
[357470441,1744078240428,-1778.04,0.00021917,2]
[357470442,1744078240438,-541.87601122,0.00021917,2]
[357470443,1744078240448,-694.6,0.00021917,2]
[357470444,1744078240458,-524.96,0.00021917,2]
[357470445,1744078240468,-534.14,0.00021917,2]
[357470446,1744078240478,-1276.21,0.00021917,2]
[357470447,1744078240488,-500.0,0.00021917,2]
[357470448,1744078240498,-500.0,0.00021917,2]
[357470449,1744078240507,-500.0,0.00021917,2]
[357470450,1744078240517,-1340.54,0.00021917,2]
[357470451,1744078240528,-2859.43,0.00021917,2]
[357470452,1744078240537,-542.01,0.00021917,2]
[357470453,1744078240548,-500.0,0.00021917,2]
[357470454,1744078240558,-500.0,0.00021917,2]
[357470455,1744078240568,-500.0,0.00021917,2]
[357470456,1744078240578,-2076.71,0.00021917,2]
[357470457,1744078240587,-500.0,0.00021917,2]
[357470458,1744078240600,-730.76,0.00021917,2]
[357470459,1744078240610,-500.0,0.00021917,2]
[357470460,1744078240620,-500.0,0.00021917,2]
[357470461,1744078240631,-500.0,0.00021917,2]
[357470462,1744078240641,-500.0,0.00021917,2]
[357470463,1744078240651,-500.0,0.00021917,2]
[357470465,1744078240662,-500.0,0.00021917,2]
[357470466,1744078240673,-500.0,0.00021917,2]
[357470467,1744078240682,-500.0,0.00021917,2]
[357470468,1744078240692,-1162.69,0.00021917,2]
[357470469,1744078240701,-500.0,0.00021917,2]
[357470470,1744078240711,-500.0,0.00021917,2]
[357470471,1744078240721,-500.0,0.00021917,2]
[357470472,1744078240731,-500.0,0.00021917,2]
[357470473,1744078240741,-505.81141377,0.00021917,2]
[357470474,1744078240752,-500.0,0.00021917,2]
[357470475,1744078240762,-500.0,0.00021917,2]
[357470476,1744078240773,-247.45595491,0.00021917,2]
[357470477,1744078240783,-500.0,0.00021917,2]
[357470478,1744078240793,-1701.69,0.00021917,2]
[357470479,1744078240803,-1335.7,0.00021917,2]
[357470480,1744078240812,-1873.27,0.00021917,2]
[357470481,1744078240822,-431.81392735,0.00021917,2]
[357470482,1744078240832,-500.0,0.00021917,2]
[357470483,1744078240842,-500.0,0.00021917,2]
[357470484,1744078240854,-412.97741077,0.00021917,2]
[357470485,1744078240864,-5360.0,0.00021917,2]
[357470486,1744078240874,-500.0,0.00021917,2]
[357470487,1744078240884,-601.69,0.00021917,2]
[357470488,1744078240895,-500.0,0.00021917,2]
[357470489,1744078240905,-771.06,0.00021917,2]
[357470490,1744078240915,-500.0,0.00021917,2]
[357470491,1744078240925,-500.0,0.00021917,2]
[357470492,1744078240936,-500.0,0.00021917,2]
[357470493,1744078240946,-500.0,0.00021917,2]
[357470494,1744078240956,-500.0,0.00021917,2]
[357470495,1744078240966,-542.12329527,0.00021917,2]
[357470496,1744078240976,-500.0,0.00021917,2]
[357470497,1744078240986,-500.0,0.00021917,2]
[357470498,1744078240997,-1134.35,0.00021917,2]
[357470499,1744078241007,-1513.16,0.00021917,2]
[357470500,1744078241016,-500.0,0.00021917,2]
[357470501,1744078241027,-1868.62,0.00021917,2]
[357470502,1744078241037,-1268.13,0.00021917,2]
[357470503,1744078241047,-500.0,0.00021917,2]
[357470504,1744078241057,-500.0,0.00021917,2]
[357470505,1744078241067,-500.0,0.00021917,2]
[357470506,1744078241077,-727.74,0.00021917,2]
[357470507,1744078241087,-1073.11,0.00021917,2]
[357470508,1744078241099,-257.03152615,0.00021917,2]
[357470509,1744078241109,-500.0,0.00021917,2]
[357470510,1744078241119,-500.63267858,0.00021917,2]
[357470511,1744078241129,-1878.37,0.00021917,2]
[357470512,1744078241138,-500.0,0.00021917,2]
[357470513,1744078241148,-500.0,0.00021917,2]
[357470514,1744078241158,-500.0,0.00021917,2]
[357470515,1744078241168,-561.08,0.00021917,2]
[357470516,1744078241178,-1915.21,0.00021917,2]
[357470517,1744078241187,-2337.51,0.00021917,2]
[357470518,1744078241198,-393.73989714,0.00021917,2]
[357470519,1744078241208,-500.0,0.00021917,2]
[357470520,1744078241218,-590.76,0.00021917,2]
[357470521,1744078241228,-500.0,0.00021917,2]
[357470522,1744078241238,-521.97391915,0.00021917,2]
[357470523,1744078241247,-500.0,0.00021917,2]
[357470524,1744078241257,-1291.27,0.00021917,2]
[357470525,1744078241267,-500.0,0.00021917,2]
[357470526,1744078241278,-500.0,0.00021917,2]
[357470527,1744078241291,-1180.34,0.00021917,2]
[357470528,1744078241301,-1165.83,0.00021917,2]
[357470529,1744078241311,-1531.45,0.00021917,2]
[357470530,1744078241321,-2979.5,0.00021917,2]
[357470531,1744078241331,-500.0,0.00021917,2]
[357470532,1744078241340,-500.0,0.00021917,2]
[357470533,1744078241352,-500.0,0.00021917,2]
[357470534,1744078241362,-500.0,0.00021917,2]
[357470535,1744078241372,-1118.42,0.00021917,2]
[357470536,1744078241381,-500.0,0.00021917,2]
[357470537,1744078241390,-1109.48,0.00021917,2]
[357470538,1744078241399,-500.0,0.00021917,2]
[357470539,1744078241408,-500.0,0.00021917,2]
[357470540,1744078241418,-500.0,0.00021917,2]
[357470541,1744078241428,-500.0,0.00021917,2]
[357470542,1744078241437,-500.0,0.00021917,2]
[357470543,1744078241447,-2935.5,0.00021917,2]
[357470544,1744078241456,-500.0,0.00021917,2]
[357470545,1744078241466,-211.11274362,0.00021917,2]
[357470546,1744078241476,-500.0,0.00021917,2]
[357470547,1744078241485,-500.0,0.00021917,2]
[357470548,1744078241496,-1602.29,0.00021917,2]
[357470549,1744078241505,-500.0,0.00021917,2]
[357470550,1744078241515,-602.81,0.00021917,2]
[357470551,1744078241525,-500.0,0.00021917,2]
[357470552,1744078241534,-2426.96,0.00021917,2]
[357470553,1744078241544,-500.0,0.00021917,2]
[357470554,1744078241555,-1569.84,0.00021917,2]
[357470555,1744078241566,-1569.84,0.00021917,2]
[357470556,1744078241575,-1569.84,0.00021917,2]
[357470557,1744078241586,-1569.84,0.00021917,2]
[357470558,1744078241597,-1569.84,0.00021917,2]
[357470559,1744078241607,-1569.84,0.00021917,2]
[357470560,1744078241617,-1569.84,0.00021917,2]
[357470561,1744078241627,-1569.84,0.00021917,2]
[357470562,1744078241637,-1569.84,0.00021917,2]
[357470563,1744078241646,-1569.84,0.00021917,2]
[357470564,1744078241656,-1569.84,0.00021917,2]
[357470565,1744078241666,-1569.84,0.00021917,2]
[357470566,1744078241676,-1569.84,0.00021917,2]
[357470567,1744078241686,-1569.84,0.00021917,2]
[357470568,1744078241696,-720.44,0.00021917,2]
[357470569,1744078241706,-1569.84,0.00021917,2]
[357470570,1744078241715,-500.0,0.00021917,2]
[357470571,1744078241725,-1569.84,0.00021917,2]
[357470572,1744078241735,-1569.84,0.00021917,2]
[357470573,1744078241744,-1569.84,0.00021917,2]
[357470574,1744078241754,-1569.84,0.00021917,2]
[357470575,1744078241763,-1569.84,0.00021917,2]
[357470576,1744078241773,-1569.84,0.00021917,2]
[357470577,1744078241782,-1569.84,0.00021917,2]
[357470578,1744078241792,-1569.84,0.00021917,2]
[357470579,1744078241803,-1570.06436247,0.00021917,2]
[357470580,1744078241812,-853.03,0.00021917,2]
[357470581,1744078241822,-500.0,0.00021917,2]
[357470582,1744078241831,-500.0,0.00021917,2]
[357470583,1744078241841,-1619.33,0.00021917,2]
[357470584,1744078241851,-1136.31,0.00021917,2]
[357470585,1744078241861,-1240.57,0.00021917,2]
[357470586,1744078241871,-795.94,0.00021917,2]
[357470587,1744078241880,-500.0,0.00021917,2]
[357470588,1744078241890,-500.0,0.00021917,2]
[357470589,1744078241900,-2114.72,0.00021917,2]
[357470590,1744078241910,-526.82758885,0.00021917,2]
[357470591,1744078241920,-1182.11,0.00021917,2]
[357470592,1744078241929,-500.0,0.00021917,2]
[357470593,1744078241940,-500.0,0.00021917,2]
[357470594,1744078241950,-503.7,0.00021917,2]
[357470595,1744078241959,-500.0,0.00021917,2]
[357470596,1744078241969,-8763.46,0.00021917,2]
[357470597,1744078241979,-500.0,0.00021917,2]
[357470598,1744078241989,-500.0,0.00021917,2]
[357470599,1744078241998,-500.0,0.00021917,2]
[357470600,1744078242008,-504.32029485,0.00021917,2]
[357470601,1744078242018,-500.0,0.00021917,2]
[357470602,1744078242027,-1130.38,0.00021917,2]
[357470603,1744078242253,-500.0,0.00021917,2]
[357470604,1744078242265,-500.0,0.00021917,2]
[357470605,1744078242276,-233.85953548,0.00021917,2]
[357470606,1744078242289,-994.27,0.00021917,2]
[357470607,1744078242300,-174.61919141,0.00021924,2]
[357470608,1744078242310,-500.0,0.00021973,2]
[357470609,1744078242320,-501.15278312,0.00021973,2]
[357470610,1744078242331,-500.74984166,0.00021973,2]
[357470611,1744078242341,-500.66664329,0.00021973,2]
[357470612,1744078242354,-501.49309975,0.00021973,2]
[357470613,1744078242370,-598.33409461,0.00021973,2]
[357470614,1744078242380,-181.08010149,0.00021979,2]
[357470615,1744078242390,-1648.0,0.00022,2]
[357470616,1744078242402,-820.0,0.00022,2]
[357470617,1744078242413,-2119.0,0.00022,2]
[357470618,1744078242423,-187.78006525,0.00022034,2]
[357470619,1744078242433,-152.0,0.00022038,2]
[357470620,1744078242444,-194.72792766,0.00022089,2]
[357470621,1744078242455,-201.93286099,0.00022144,2]
[357470622,1744078242465,-290.11660986,0.00022149,2]
[357470623,1744078242476,-500.0,0.00022173,2]
[357470624,1744078242487,-500.0,0.00022173,2]
[357470625,1744078242497,-500.0,0.00022173,2]
[357470626,1744078242508,-500.0,0.00022173,2]
[357470627,1744078242518,-500.0,0.00022173,2]
[357470628,1744078242528,-339.59470037,0.00022173,2]
[357470629,1744078242540,-500.0,0.00022173,2]
[357470630,1744078242551,-500.0,0.00022173,2]
[357470631,1744078242562,-500.0,0.00022173,2]
[357470632,1744078242572,-500.0,0.00022173,2]
[357470633,1744078242583,-500.0,0.00022173,2]
[357470636,1744078242594,-500.0,0.00022173,2]
[357470638,1744078242605,-500.82919883,0.00022173,2]
[357470640,1744078242615,-500.0,0.00022173,2]
[357470641,1744078242625,-503.56205169,0.00022173,2]
[357470642,1744078242635,-501.04185555,0.00022173,2]
[357470644,1744078242645,-608.3465431,0.00022173,2]
[357470646,1744078242655,-256.9179675,0.00022173,2]
[357470647,1744078242666,-500.0,0.00022173,2]
[357470648,1744078242676,-501.49778525,0.00022173,2]
[357470650,1744078242686,-501.97825502,0.00022173,2]
[357470651,1744078242695,-510.33701651,0.00022173,2]
[357470654,1744078242706,-500.44014391,0.00022173,2]
[357470655,1744078242716,-165.09083967,0.00022173,2]
[357470657,1744078242726,-501.32097158,0.00022173,2]
[357470659,1744078242735,-300.36949938,0.00022173,2]
[357470660,1744078242746,-500.0,0.00022173,2]
[357470661,1744078242756,-301.64419783,0.00022173,2]
[357470662,1744078242765,-500.0,0.00022191,2]
[357470663,1744078242775,-500.0,0.00022191,2]
[357470664,1744078242785,-500.0,0.00022191,2]
[357470665,1744078242795,-213.74858961,0.00022191,2]
[357470666,1744078242805,-500.0,0.00022191,2]
[357470667,1744078242815,-500.0,0.00022191,2]
[357470668,1744078242825,-500.0,0.00022191,2]
[357470669,1744078242834,-500.0,0.00022191,2]
[357470670,1744078242844,-500.0,0.00022191,2]
[357470671,1744078242854,-500.0,0.00022191,2]
[357470672,1744078242864,-500.0,0.00022191,2]
[357470673,1744078242874,-500.0,0.00022191,2]
[357470674,1744078242883,-500.0,0.00022191,2]
[357470675,1744078242893,-500.0,0.00022191,2]
[357470677,1744078242903,-500.0,0.00022191,2]
[357470679,1744078242912,-500.0,0.00022191,2]
[357470681,1744078242922,-523.03,0.00022191,2]
[357470682,1744078242932,-500.0,0.00022191,2]
[357470683,1744078242942,-568.94,0.00022191,2]
[357470684,1744078242951,-500.0,0.00022191,2]
[357470685,1744078242960,-500.0,0.00022191,2]
[357470686,1744078242970,-500.0,0.00022191,2]
[357470688,1744078242979,-500.0,0.00022191,2]
[357470689,1744078242989,-500.0,0.00022191,2]
[357470691,1744078242999,-500.0,0.00022191,2]
[357470692,1744078243008,-500.0,0.00022191,2]
[357470693,1744078243018,-500.0,0.00022191,2]
[357470694,1744078243028,-500.0,0.00022191,2]
[357470695,1744078243037,-500.0,0.00022191,2]
[357470696,1744078243047,-500.0,0.00022191,2]
[357470697,1744078243057,-500.0,0.00022191,2]
[357470698,1744078243066,-500.0,0.00022191,2]
[357470699,1744078243076,-500.0,0.00022191,2]
[357470700,1744078243086,-500.0,0.00022191,2]
[357470701,1744078243096,-500.0,0.00022191,2]
[357470702,1744078243106,-500.0,0.00022191,2]
[357470703,1744078243115,-500.0,0.00022191,2]
[357470705,1744078243125,-500.0,0.00022191,2]
[357470706,1744078243135,-500.0,0.00022191,2]
[357470707,1744078243145,-500.0,0.00022191,2]
[357470708,1744078243154,-500.0,0.00022191,2]
[357470709,1744078243164,-373.95918618,0.00022191,2]
[357470710,1744078243174,-500.0,0.00022191,2]
[357470711,1744078243184,-500.0,0.00022191,2]
[357470712,1744078243194,-512.11988996,0.00022191,2]
[357470713,1744078243204,-500.0,0.00022191,2]
[357470714,1744078243214,-500.0,0.00022191,2]
[357470715,1744078243223,-500.0,0.00022191,2]
[357470716,1744078243233,-500.0,0.00022191,2]
[357470717,1744078243243,-500.0,0.00022191,2]
[357470718,1744078243252,-655.89,0.00022191,2]
[357470719,1744078243261,-500.0,0.00022191,2]
[357470720,1744078243271,-500.0,0.00022191,2]
[357470721,1744078243282,-617.55,0.00022191,2]
[357470722,1744078243294,-500.0,0.00022191,2]
[357470723,1744078243303,-500.0,0.00022191,2]
[357470724,1744078243313,-500.0,0.00022191,2]
[357470725,1744078243323,-583.065375,0.00022191,2]
[357470726,1744078243332,-500.0,0.00022191,2]
[357470727,1744078243342,-500.0,0.00022191,2]
[357470728,1744078243351,-500.0,0.00022191,2]
[357470729,1744078243363,-500.0,0.00022191,2]
[357470730,1744078243372,-500.0,0.00022191,2]
[357470731,1744078243382,-500.0,0.00022191,2]
[357470732,1744078243391,-300.85,0.00022191,2]
[357470733,1744078243401,-500.0,0.00022191,2]
[357470734,1744078243410,-500.0,0.00022191,2]
[357470735,1744078243420,-500.0,0.00022191,2]
[357470736,1744078243430,-741.86,0.00022191,2]
[357470737,1744078243441,-500.0,0.00022191,2]
[357470738,1744078243450,-500.0,0.00022191,2]
[357470739,1744078243460,-500.0,0.00022191,2]
[357470740,1744078243470,-500.0,0.00022191,2]
[357470741,1744078243480,-647.06,0.00022191,2]
[357470742,1744078243489,-500.0,0.00022191,2]
[357470743,1744078243499,-500.0,0.00022191,2]
[357470744,1744078243509,-500.11,0.00022191,2]
[357470745,1744078243518,-500.0,0.00022191,2]
[357470746,1744078243527,-500.0,0.00022191,2]
[357470747,1744078243537,-527.31,0.00022191,2]
[357470748,1744078243546,-200.0,0.00022191,2]
[357470749,1744078243556,-500.0,0.00022191,2]
[357470750,1744078243566,-500.0,0.00022191,2]
[357470751,1744078243576,-500.0,0.00022191,2]
[357470752,1744078243585,-500.0,0.00022191,2]
[357470753,1744078243596,-500.0,0.00022191,2]
[357470754,1744078243606,-500.0,0.00022191,2]
[357470755,1744078243616,-500.0,0.00022191,2]
[357470756,1744078243625,-500.0,0.00022191,2]
[357470757,1744078243634,-777.63,0.00022191,2]
[357470758,1744078243644,-1500.08,0.00022191,2]
[357470761,1744078243654,-500.0,0.00022191,2]
[357470762,1744078243663,-500.0,0.00022191,2]
[357470764,1744078243673,-500.0,0.00022191,2]
[357470765,1744078243682,-500.0,0.00022191,2]
[357470766,1744078243692,-500.0,0.00022191,2]
[357470767,1744078243702,-500.0,0.00022191,2]
[357470768,1744078243711,-500.0,0.00022191,2]
[357470769,1744078243721,-500.0,0.00022191,2]
[357470770,1744078243731,-500.0,0.00022191,2]
[357470771,1744078243740,-1208.47,0.00022191,2]
[357470772,1744078243750,-500.0,0.00022191,2]
[357470773,1744078243760,-500.0,0.00022191,2]
[357470774,1744078243770,-554.86,0.00022191,2]
[357470775,1744078243779,-500.0,0.00022191,2]
[357470776,1744078243789,-831.74,0.00022191,2]
[357470777,1744078243798,-500.0,0.00022191,2]
[357470778,1744078243808,-500.0,0.00022191,2]
[357470779,1744078243817,-1054.4,0.00022191,2]
[357470780,1744078243827,-500.0,0.00022191,2]
[357470781,1744078243836,-500.0,0.00022191,2]
[357470782,1744078243847,-500.0,0.00022191,2]
[357470783,1744078243856,-951.68,0.00022191,2]
[357470784,1744078243866,-500.0,0.00022191,2]
[357470785,1744078243875,-520.28919712,0.00022191,2]
[357470786,1744078243885,-500.0,0.00022191,2]
[357470787,1744078243894,-500.0,0.00022191,2]
[357470788,1744078243903,-500.0,0.00022191,2]
[357470789,1744078243913,-1393.1,0.00022191,2]
[357470790,1744078243923,-509.71578883,0.00022191,2]
[357470791,1744078243933,-500.0,0.00022191,2]
[357470792,1744078243943,-500.0,0.00022191,2]
[357470793,1744078243952,-500.0,0.00022191,2]
[357470794,1744078243961,-500.0,0.00022191,2]
[357470795,1744078243971,-526.21,0.00022191,2]
[357470796,1744078243980,-500.0,0.00022191,2]
[357470797,1744078243989,-500.0,0.00022191,2]
[357470798,1744078243999,-572.22,0.00022191,2]
[357470799,1744078244008,-500.0,0.00022191,2]
[357470800,1744078244018,-500.0,0.00022191,2]
[357470801,1744078244027,-1780.71,0.00022191,2]
[357470802,1744078244037,-500.0,0.00022191,2]
[357470803,1744078244047,-500.0,0.00022191,2]
[357470804,1744078244057,-500.0,0.00022191,2]
[357470805,1744078244067,-500.0,0.00022191,2]
[357470806,1744078244077,-535.6744836,0.00022191,2]
[357470807,1744078244086,-836.02,0.00022191,2]
[357470808,1744078244096,-1353.37,0.00022191,2]
[357470809,1744078244106,-500.0,0.00022191,2]
[357470810,1744078244115,-500.0,0.00022191,2]
[357470811,1744078244125,-500.0,0.00022191,2]
[357470812,1744078244135,-500.0,0.00022191,2]
[357470813,1744078244145,-500.0,0.00022191,2]
[357470814,1744078244154,-500.0,0.00022191,2]
[357470815,1744078244164,-548.88078245,0.00022191,2]
[357470816,1744078244174,-500.0,0.00022191,2]
[357470817,1744078244183,-500.0,0.00022191,2]
[357470818,1744078244193,-500.0,0.00022191,2]
[357470819,1744078244204,-500.0,0.00022191,2]
[357470820,1744078244213,-500.0,0.00022191,2]
[357470821,1744078244223,-500.0,0.00022191,2]
[357470822,1744078244233,-1092.41,0.00022191,2]
[357470823,1744078244243,-504.03480057,0.00022191,2]
[357470824,1744078244252,-500.0,0.00022191,2]
[357470825,1744078244262,-500.0,0.00022191,2]